[Event "*** Titled Tuesday Blitz"]
[Site "Chess.com"]
[Date "2021.02.02"]
[Round "8"]
[White "benko_008"]
[Black "davidkalashian"]
[Result "0-1"]
[WhiteElo "2404"]
[BlackElo "2578"]
[TimeControl "180+1"]
[EndTime "11:28:36 PST"]
[Termination "davidkalashian won by resignation"]

1. Nf3 {[%clk 0:03:00.9]} 1... Nf6 {[%clk 0:02:59.7]} 2. c4 {[%clk 0:03:00.7]}
2... e6 {[%clk 0:02:59.6]} 3. Nc3 {[%clk 0:03:00.6]} 3... Bb4 {[%clk 0:02:58.9]}
4. Qc2 {[%clk 0:03:00.1]} 4... O-O {[%clk 0:02:58.5]} 5. a3 {[%clk 0:03:00.3]}
5... Bxc3 {[%clk 0:02:58.8]} 6. Qxc3 {[%clk 0:03:01.2]} 6... b6 {[%clk
0:02:59.6]} 7. b4 {[%clk 0:03:01.1]} 7... Bb7 {[%clk 0:03:00.1]} 8. Bb2 {[%clk
0:03:01.5]} 8... d6 {[%clk 0:03:00.6]} 9. e3 {[%clk 0:03:01.7]} 9... Nbd7 {[%clk
0:03:01]} 10. Be2 {[%clk 0:03:01.9]} 10... Re8 {[%clk 0:03:01.5]} 11. O-O {[%clk
0:03:01.6]} 11... e5 {[%clk 0:03:02]} 12. d3 {[%clk 0:02:59.5]} 12... Qe7 {[%clk
0:02:59.8]} 13. Nd2 {[%clk 0:02:49.8]} 13... Nf8 {[%clk 0:02:45]} 14. Bf3 {[%clk
0:02:31.4]} 14... c6 {[%clk 0:02:42.6]} 15. b5 {[%clk 0:02:07.4]} 15... cxb5
{[%clk 0:02:34.9]} 16. Bxb7 {[%clk 0:02:06.6]} 16... Qxb7 {[%clk 0:02:35.8]} 17.
cxb5 {[%clk 0:02:06.8]} 17... Rac8 {[%clk 0:02:23.9]} 18. Qb3 {[%clk 0:02:06.5]}
18... Ne6 {[%clk 0:02:24.4]} 19. a4 {[%clk 0:02:00.5]} 19... Nc5 {[%clk
0:02:22.2]} 20. Qa3 {[%clk 0:01:55.2]} 20... Qd5 {[%clk 0:02:20.3]} 21. d4
{[%clk 0:01:46.9]} 21... Nce4 {[%clk 0:02:19.8]} 22. Nf3 {[%clk 0:01:35.9]}
22... Ng4 {[%clk 0:01:58.7]} 23. Rad1 {[%clk 0:01:20.7]} 23... Nexf2 {[%clk
0:01:48.1]} 24. Rxf2 {[%clk 0:01:20.2]} 24... Nxf2 {[%clk 0:01:49]} 25. Kxf2
{[%clk 0:01:21.1]} 25... Rc2+ {[%clk 0:01:48.8]} 26. Rd2 {[%clk 0:01:17.8]}
26... Rec8 {[%clk 0:01:41.8]} 27. Qd3 {[%clk 0:01:14.3]} 27... Rxb2 {[%clk
0:01:31.2]} 28. Rxb2 {[%clk 0:01:09.6]} 28... e4 {[%clk 0:01:30.5]} 29. Rc2
{[%clk 0:00:45.2]} 29... Rf8 {[%clk 0:01:20.4]} 30. Qc4 {[%clk 0:00:43.1]} 30...
Qf5 {[%clk 0:01:20.2]} 31. g4 {[%clk 0:00:39]} 31... Qxf3+ {[%clk 0:01:18.9]}
32. Ke1 {[%clk 0:00:38.7]} 32... Qxe3+ {[%clk 0:01:18.4]} 33. Kd1 {[%clk
0:00:37.7]} 33... Qg1+ {[%clk 0:01:15.8]} 34. Kd2 {[%clk 0:00:37.1]} 34... Qxg4
{[%clk 0:01:15.1]} 35. Kc3 {[%clk 0:00:37.4]} 35... Rc8 {[%clk 0:01:11.1]} 36.
Kb2 {[%clk 0:00:36.2]} 36... Rxc4 {[%clk 0:01:10.4]} 37. Rxc4 {[%clk 0:00:37.1]}
0-1

[Event "*** Titled Tuesday Blitz"]
[Site "Chess.com"]
[Date "2021.02.02"]
[Round "8"]
[White "pavelalexandru07"]
[Black "The_filthy"]
[Result "0-1"]
[WhiteElo "2310"]
[BlackElo "2230"]
[TimeControl "180+1"]
[EndTime "11:28:36 PST"]
[Termination "The_filthy won by resignation"]

1. g3 {[%clk 0:02:53.5]} 1... d5 {[%clk 0:02:58.3]} 2. Bg2 {[%clk 0:02:54.4]}
2... e5 {[%clk 0:02:58.5]} 3. d3 {[%clk 0:02:52.1]} 3... Nc6 {[%clk 0:02:58.6]}
4. c4 {[%clk 0:02:52.2]} 4... Nf6 {[%clk 0:02:58.1]} 5. cxd5 {[%clk 0:02:51.3]}
5... Nxd5 {[%clk 0:02:58.4]} 6. Nc3 {[%clk 0:02:51.9]} 6... Be6 {[%clk
0:02:55.8]} 7. Nf3 {[%clk 0:02:50.5]} 7... Be7 {[%clk 0:02:50.2]} 8. O-O {[%clk
0:02:50.3]} 8... Qd7 {[%clk 0:02:50.1]} 9. Nxd5 {[%clk 0:02:31.3]} 9... Bxd5
{[%clk 0:02:49.4]} 10. Nd2 {[%clk 0:02:24.5]} 10... Bxg2 {[%clk 0:02:48.5]} 11.
Kxg2 {[%clk 0:02:25.4]} 11... h5 {[%clk 0:02:48.7]} 12. h4 {[%clk 0:02:23.6]}
12... g5 {[%clk 0:02:48.7]} 13. hxg5 {[%clk 0:02:23]} 13... h4 {[%clk
0:02:49.1]} 14. Rh1 {[%clk 0:02:17.4]} 14... O-O-O {[%clk 0:02:48.7]} 15. Ne4
{[%clk 0:02:16.3]} 15... hxg3 {[%clk 0:02:47.1]} 16. fxg3 {[%clk 0:02:07]} 16...
Nd4 {[%clk 0:02:45.2]} 17. e3 {[%clk 0:01:07.9]} 17... Ne6 {[%clk 0:02:39.4]}
18. Rxh8 {[%clk 0:00:48.4]} 18... Rxh8 {[%clk 0:02:38.8]} 19. Qg4 {[%clk
0:00:48.7]} 19... Qxd3 {[%clk 0:02:32]} 20. g6 {[%clk 0:00:40]} 20... Rg8 {[%clk
0:02:11.2]} 21. Qf5 {[%clk 0:00:16]} 21... Rxg6 {[%clk 0:01:57.4]} 22. Bd2
{[%clk 0:00:15.6]} 22... Qd7 {[%clk 0:01:41.7]} 23. Qf3 {[%clk 0:00:09]} 23...
f5 {[%clk 0:01:31.8]} 24. Nf2 {[%clk 0:00:05.1]} 24... Qxd2 {[%clk 0:01:27]} 25.
Rd1 {[%clk 0:00:04.8]} 25... Qc2 {[%clk 0:01:12.3]} 26. Qh5 {[%clk 0:00:04.9]}
26... Qc6+ {[%clk 0:01:08.8]} 27. e4 {[%clk 0:00:04.6]} 27... Nf4+ {[%clk
0:01:07.5]} 0-1

[Event "*** Titled Tuesday Blitz"]
[Site "Chess.com"]
[Date "2021.02.02"]
[Round "8"]
[White "Bodnar_Mykola"]
[Black "GCamachoMartinez"]
[Result "1-0"]
[WhiteElo "2548"]
[BlackElo "2422"]
[TimeControl "180+1"]
[EndTime "11:28:39 PST"]
[Termination "Bodnar_Mykola won by resignation"]

1. e4 {[%clk 0:03:00.9]} 1... c5 {[%clk 0:03:00.1]} 2. Nf3 {[%clk 0:03:01]} 2...
d6 {[%clk 0:03:00.3]} 3. d4 {[%clk 0:03:00.9]} 3... cxd4 {[%clk 0:03:01.2]} 4.
Nxd4 {[%clk 0:03:01.4]} 4... Nf6 {[%clk 0:03:01.4]} 5. f3 {[%clk 0:03:01.7]}
5... e5 {[%clk 0:02:56.4]} 6. Bb5+ {[%clk 0:03:00.9]} 6... Nbd7 {[%clk
0:02:53.6]} 7. Nf5 {[%clk 0:03:00.3]} 7... d5 {[%clk 0:02:52.5]} 8. exd5 {[%clk
0:03:00.6]} 8... a6 {[%clk 0:02:51.9]} 9. Bxd7+ {[%clk 0:03:01.1]} 9... Bxd7
{[%clk 0:02:44.6]} 10. Ne3 {[%clk 0:03:00.5]} 10... Bc5 {[%clk 0:02:41.6]} 11.
c4 {[%clk 0:02:56.7]} 11... b5 {[%clk 0:02:38.3]} 12. Nc3 {[%clk 0:02:55.7]}
12... O-O {[%clk 0:02:27.1]} 13. O-O {[%clk 0:02:55.5]} 13... bxc4 {[%clk
0:02:09.1]} 14. Kh1 {[%clk 0:02:54.5]} 14... Bd4 {[%clk 0:01:41.1]} 15. Nxc4
{[%clk 0:02:51.4]} 15... Bxc3 {[%clk 0:01:35.1]} 16. bxc3 {[%clk 0:02:50.1]}
16... Bb5 {[%clk 0:01:35.4]} 17. Ne3 {[%clk 0:02:34.7]} 17... Bxf1 {[%clk
0:01:33.2]} 18. Qxf1 {[%clk 0:02:28.1]} 18... Nxd5 {[%clk 0:01:33.4]} 19. c4
{[%clk 0:02:20.7]} 19... Nxe3 {[%clk 0:01:30.3]} 20. Bxe3 {[%clk 0:02:21.6]}
20... Rc8 {[%clk 0:01:18.4]} 21. c5 {[%clk 0:02:21.2]} 21... Qc7 {[%clk
0:01:15.1]} 22. Qxa6 {[%clk 0:02:19.8]} 22... Rfd8 {[%clk 0:01:08.8]} 23. a4
{[%clk 0:02:15.9]} 23... f5 {[%clk 0:00:51.9]} 24. Qe6+ {[%clk 0:02:11.6]} 24...
Qf7 {[%clk 0:00:38]} 25. Qxe5 {[%clk 0:02:11.5]} 25... Re8 {[%clk 0:00:21.8]}
26. Qc3 {[%clk 0:02:09.4]} 26... f4 {[%clk 0:00:20.5]} 27. Bg1 {[%clk
0:02:07.6]} 27... Re2 {[%clk 0:00:20.2]} 28. Qd3 {[%clk 0:02:01.4]} 28... Rce8
{[%clk 0:00:17.4]} 29. c6 {[%clk 0:01:55.9]} 29... Qc7 {[%clk 0:00:15.4]} 30.
Rc1 {[%clk 0:01:51.3]} 30... h6 {[%clk 0:00:15]} 31. h3 {[%clk 0:01:39.2]} 31...
R8e6 {[%clk 0:00:13.7]} 32. a5 {[%clk 0:01:35]} 32... Qxa5 {[%clk 0:00:12.2]}
33. c7 {[%clk 0:01:34]} 33... Qg5 {[%clk 0:00:08.7]} 34. c8=Q+ {[%clk
0:01:33.5]} 34... Re8 {[%clk 0:00:06.7]} 35. Qxe2 {[%clk 0:01:24.7]} 1-0

[Event "*** Titled Tuesday Blitz"]
[Site "Chess.com"]
[Date "2021.02.02"]
[Round "8"]
[White "GMaka"]
[Black "GelmanAlexander"]
[Result "0-1"]
[WhiteElo "2418"]
[BlackElo "2585"]
[TimeControl "180+1"]
[EndTime "11:28:40 PST"]
[Termination "GelmanAlexander won by resignation"]

1. d4 {[%clk 0:03:00.9]} 1... Nf6 {[%clk 0:02:57.7]} 2. Bg5 {[%clk 0:03:00.7]}
2... c5 {[%clk 0:02:57.5]} 3. Bxf6 {[%clk 0:03:00.6]} 3... gxf6 {[%clk
0:02:57.8]} 4. d5 {[%clk 0:02:59.4]} 4... f5 {[%clk 0:02:58.2]} 5. c3 {[%clk
0:02:59.2]} 5... Bg7 {[%clk 0:02:56.1]} 6. g3 {[%clk 0:02:57.7]} 6... d6 {[%clk
0:02:46.7]} 7. Bg2 {[%clk 0:02:56.2]} 7... e5 {[%clk 0:02:46.3]} 8. dxe6 {[%clk
0:02:50.5]} 8... fxe6 {[%clk 0:02:45.3]} 9. e4 {[%clk 0:02:50.7]} 9... O-O
{[%clk 0:02:35.7]} 10. exf5 {[%clk 0:02:49.7]} 10... Rxf5 {[%clk 0:02:34]} 11.
Nf3 {[%clk 0:02:49.8]} 11... Nc6 {[%clk 0:02:31.4]} 12. O-O {[%clk 0:02:49.5]}
12... d5 {[%clk 0:02:25]} 13. Nh4 {[%clk 0:02:47.6]} 13... Rf8 {[%clk 0:02:17]}
14. Na3 {[%clk 0:02:41.8]} 14... Bd7 {[%clk 0:02:10.8]} 15. f4 {[%clk
0:02:33.8]} 15... b5 {[%clk 0:02:00.8]} 16. Nxb5 {[%clk 0:02:20.5]} 16... Rb8
{[%clk 0:01:56.3]} 17. Qe2 {[%clk 0:02:10.1]} 17... Qb6 {[%clk 0:01:48]} 18. c4
{[%clk 0:02:08]} 18... Nd4 {[%clk 0:01:26.9]} 19. Nxd4 {[%clk 0:02:00.3]} 19...
cxd4 {[%clk 0:01:26.7]} 20. Kh1 {[%clk 0:01:41.3]} 20... dxc4 {[%clk 0:01:25.5]}
21. Qxc4 {[%clk 0:01:26.6]} 21... Bb5 {[%clk 0:01:20.8]} 22. Qc2 {[%clk
0:01:26.2]} 22... Bxf1 {[%clk 0:01:14.5]} 23. Rxf1 {[%clk 0:01:27.1]} 23... Qxb2
{[%clk 0:01:14.3]} 24. Qe4 {[%clk 0:01:26.2]} 24... Qxa2 {[%clk 0:01:09.4]} 25.
Nf3 {[%clk 0:01:23.9]} 25... Qd5 {[%clk 0:00:57]} 26. Ng5 {[%clk 0:01:16.2]}
26... Qxe4 {[%clk 0:00:55.3]} 27. Bxe4 {[%clk 0:01:17.1]} 27... Rb6 {[%clk
0:00:41.3]} 28. Bxh7+ {[%clk 0:01:06.4]} 28... Kh8 {[%clk 0:00:41.3]} 29. Be4
{[%clk 0:00:58.4]} 29... Bf6 {[%clk 0:00:37.2]} 30. Nh7 {[%clk 0:00:45.5]} 30...
Rf7 {[%clk 0:00:36.2]} 31. Bg6 {[%clk 0:00:43.5]} 31... Rxh7 {[%clk 0:00:35.5]}
0-1

[Event "*** Titled Tuesday Blitz"]
[Site "Chess.com"]
[Date "2021.02.02"]
[Round "8"]
[White "LubovMarkelova"]
[Black "noblerone"]
[Result "0-1"]
[WhiteElo "2250"]
[BlackElo "2405"]
[TimeControl "180+1"]
[EndTime "11:28:49 PST"]
[Termination "noblerone won by checkmate"]

1. Nf3 {[%clk 0:01:21.3]} 1... d5 {[%clk 0:02:59.7]} 2. d4 {[%clk 0:01:19.7]}
2... Nf6 {[%clk 0:03:00]} 3. c4 {[%clk 0:01:19.4]} 3... c6 {[%clk 0:03:00.4]} 4.
e3 {[%clk 0:01:20.3]} 4... Bg4 {[%clk 0:03:00]} 5. h3 {[%clk 0:01:19.8]} 5...
Bh5 {[%clk 0:03:00.2]} 6. g4 {[%clk 0:01:20.3]} 6... Bg6 {[%clk 0:03:00.5]} 7.
Ne5 {[%clk 0:01:21]} 7... e6 {[%clk 0:03:00.6]} 8. Bg2 {[%clk 0:01:19]} 8...
Nbd7 {[%clk 0:02:55.1]} 9. Nxg6 {[%clk 0:01:19.1]} 9... hxg6 {[%clk 0:02:55.2]}
10. Qd3 {[%clk 0:01:19.8]} 10... Bd6 {[%clk 0:02:35.7]} 11. Nc3 {[%clk
0:01:08.2]} 11... a6 {[%clk 0:02:28.9]} 12. a3 {[%clk 0:01:06]} 12... Qe7 {[%clk
0:02:20.3]} 13. b4 {[%clk 0:01:04.3]} 13... dxc4 {[%clk 0:02:08.8]} 14. Qxc4
{[%clk 0:01:03.6]} 14... e5 {[%clk 0:02:08.1]} 15. O-O {[%clk 0:01:02.1]} 15...
O-O {[%clk 0:01:58.9]} 16. d5 {[%clk 0:00:57.2]} 16... c5 {[%clk 0:01:49.6]} 17.
b5 {[%clk 0:00:42.7]} 17... Nb6 {[%clk 0:01:42.5]} 18. Qe2 {[%clk 0:00:42.7]}
18... e4 {[%clk 0:01:37.5]} 19. Bb2 {[%clk 0:00:35]} 19... Qe5 {[%clk
0:01:11.4]} 20. f4 {[%clk 0:00:35]} 20... exf3 {[%clk 0:01:11.5]} 21. Qxf3
{[%clk 0:00:35]} 21... Nc4 {[%clk 0:00:52.2]} 22. Bc1 {[%clk 0:00:08.2]} 22...
Qxc3 {[%clk 0:00:47.6]} 23. Ra2 {[%clk 0:00:08]} 23... Qe5 {[%clk 0:00:44.7]}
24. Raf2 {[%clk 0:00:08]} 24... Qh2# {[%clk 0:00:43.3]} 0-1

[Event "*** Titled Tuesday Blitz"]
[Site "Chess.com"]
[Date "2021.02.02"]
[Round "8"]
[White "ChessWarrior7197"]
[Black "Sibelephant"]
[Result "1-0"]
[WhiteElo "2936"]
[BlackElo "3050"]
[TimeControl "180+1"]
[EndTime "11:28:51 PST"]
[Termination "ChessWarrior7197 won by resignation"]

1. e4 {[%clk 0:03:00.9]} 1... e5 {[%clk 0:02:59.1]} 2. Nf3 {[%clk 0:03:00.8]}
2... Nc6 {[%clk 0:02:59.1]} 3. Bc4 {[%clk 0:03:01.3]} 3... Be7 {[%clk
0:02:59.4]} 4. d4 {[%clk 0:02:58.2]} 4... d6 {[%clk 0:02:59.5]} 5. dxe5 {[%clk
0:02:54]} 5... dxe5 {[%clk 0:02:58.8]} 6. Qxd8+ {[%clk 0:02:54.9]} 6... Bxd8
{[%clk 0:02:59.1]} 7. Nc3 {[%clk 0:02:45.1]} 7... Nf6 {[%clk 0:02:59]} 8. Be3
{[%clk 0:02:30.6]} 8... Be6 {[%clk 0:02:58.6]} 9. Bb5 {[%clk 0:02:28.3]} 9...
Nd7 {[%clk 0:02:58.6]} 10. O-O-O {[%clk 0:02:25.8]} 10... f6 {[%clk 0:02:56.3]}
11. Bxc6 {[%clk 0:02:20.5]} 11... bxc6 {[%clk 0:02:55.9]} 12. Nd2 {[%clk
0:02:21.4]} 12... Be7 {[%clk 0:02:40]} 13. Na4 {[%clk 0:02:21.4]} 13... Kf7
{[%clk 0:01:59.8]} 14. Nb3 {[%clk 0:02:15.8]} 14... a5 {[%clk 0:01:55.9]} 15.
Nbc5 {[%clk 0:02:09.1]} 15... Bxc5 {[%clk 0:01:47.2]} 16. Bxc5 {[%clk
0:02:05.3]} 16... Rhd8 {[%clk 0:01:40.2]} 17. b3 {[%clk 0:02:01.8]} 17... Rab8
{[%clk 0:00:56.8]} 18. Be3 {[%clk 0:02:00.3]} 18... Ke8 {[%clk 0:00:53.4]} 19.
Rd3 {[%clk 0:01:55.3]} 19... Nb6 {[%clk 0:00:45.5]} 20. Rxd8+ {[%clk 0:01:53.4]}
20... Kxd8 {[%clk 0:00:45.8]} 21. Rd1+ {[%clk 0:01:53.2]} 21... Ke7 {[%clk
0:00:37.4]} 22. Bc5+ {[%clk 0:01:48.2]} 22... Ke8 {[%clk 0:00:37]} 23. Nc3
{[%clk 0:01:37.7]} 23... a4 {[%clk 0:00:37.2]} 24. Bxb6 {[%clk 0:01:36.2]} 24...
cxb6 {[%clk 0:00:31.6]} 25. Nxa4 {[%clk 0:01:36.2]} 25... Ke7 {[%clk 0:00:27.5]}
26. Kb2 {[%clk 0:01:34.3]} 26... Bd7 {[%clk 0:00:23.7]} 27. c4 {[%clk
0:01:31.7]} 27... b5 {[%clk 0:00:23.7]} 28. Nc5 {[%clk 0:01:30.2]} 28... Be8
{[%clk 0:00:23.9]} 29. Kc3 {[%clk 0:01:27.6]} 29... Bf7 {[%clk 0:00:18.1]} 30.
a4 {[%clk 0:01:25.2]} 30... bxc4 {[%clk 0:00:17.8]} 31. Rd7+ {[%clk 0:01:19.1]}
31... Ke8 {[%clk 0:00:17.4]} 32. b4 {[%clk 0:01:18.8]} 32... Ra8 {[%clk
0:00:13]} 33. a5 {[%clk 0:01:18.4]} 33... Rb8 {[%clk 0:00:12.6]} 34. a6 {[%clk
0:01:18.1]} 34... Ra8 {[%clk 0:00:11.1]} 35. a7 {[%clk 0:01:18.3]} 1-0

[Event "*** Titled Tuesday Blitz"]
[Site "Chess.com"]
[Date "2021.02.02"]
[Round "8"]
[White "Man-Chuk"]
[Black "Alexander_Moskalenko"]
[Result "1-0"]
[WhiteElo "2927"]
[BlackElo "2812"]
[TimeControl "180+1"]
[EndTime "11:28:52 PST"]
[Termination "Man-Chuk won by resignation"]

1. c4 {[%clk 0:03:00.9]} 1... b6 {[%clk 0:03:00.9]} 2. Nc3 {[%clk 0:02:59.8]}
2... Bb7 {[%clk 0:03:01.6]} 3. d4 {[%clk 0:02:59.7]} 3... e6 {[%clk 0:03:02.2]}
4. a3 {[%clk 0:02:58.6]} 4... f5 {[%clk 0:03:02]} 5. d5 {[%clk 0:02:53.3]} 5...
Nf6 {[%clk 0:03:02.1]} 6. dxe6 {[%clk 0:02:47]} 6... dxe6 {[%clk 0:02:49.7]} 7.
Qxd8+ {[%clk 0:02:47.9]} 7... Kxd8 {[%clk 0:02:50.4]} 8. Bf4 {[%clk 0:02:46.6]}
8... Bd6 {[%clk 0:02:49.7]} 9. Rd1 {[%clk 0:02:20.1]} 9... Ke7 {[%clk 0:02:48]}
10. Bxd6+ {[%clk 0:02:20.1]} 10... cxd6 {[%clk 0:02:48.9]} 11. Nb5 {[%clk
0:02:20.7]} 11... Ne8 {[%clk 0:02:49.4]} 12. Nf3 {[%clk 0:02:18.3]} 12... Nd7
{[%clk 0:02:47.2]} 13. e3 {[%clk 0:02:15.3]} 13... a6 {[%clk 0:02:47.3]} 14. Nc3
{[%clk 0:02:15]} 14... Nef6 {[%clk 0:02:47.4]} 15. Be2 {[%clk 0:02:12.1]} 15...
Rhc8 {[%clk 0:02:46]} 16. O-O {[%clk 0:02:08.2]} 16... d5 {[%clk 0:02:39.1]} 17.
cxd5 {[%clk 0:02:03.2]} 17... Nxd5 {[%clk 0:02:40]} 18. Nxd5+ {[%clk 0:02:03.2]}
18... Bxd5 {[%clk 0:02:40.9]} 19. Nd4 {[%clk 0:02:00.8]} 19... g6 {[%clk
0:02:40.4]} 20. Rd2 {[%clk 0:01:58.4]} 20... Nf6 {[%clk 0:02:38.7]} 21. f3
{[%clk 0:01:54.2]} 21... e5 {[%clk 0:02:33.2]} 22. Nc2 {[%clk 0:01:53.7]} 22...
Bb3 {[%clk 0:02:32.6]} 23. Nb4 {[%clk 0:01:34.8]} 23... a5 {[%clk 0:02:32.5]}
24. Nd3 {[%clk 0:01:35.2]} 24... e4 {[%clk 0:02:28.6]} 25. Ne5 {[%clk
0:01:22.4]} 25... Ke6 {[%clk 0:02:17.1]} 26. f4 {[%clk 0:01:22.6]} 26... Rd8
{[%clk 0:02:17.7]} 27. Rxd8 {[%clk 0:01:15.9]} 27... Rxd8 {[%clk 0:02:18.6]} 28.
Rc1 {[%clk 0:01:15.8]} 28... Rd2 {[%clk 0:02:18.9]} 29. Rc6+ {[%clk 0:01:15.5]}
29... Ke7 {[%clk 0:02:18.1]} 30. Rxb6 {[%clk 0:00:43.2]} 30... a4 {[%clk
0:02:15.1]} 31. Bc4 {[%clk 0:00:35]} 31... Rxb2 {[%clk 0:02:14.6]} 32. Re6+
{[%clk 0:00:34]} 32... Kd8 {[%clk 0:01:56.5]} 33. Rxf6 {[%clk 0:00:34.9]} 33...
Rc2 {[%clk 0:01:48]} 34. Bb5 {[%clk 0:00:25.2]} 34... Ra2 {[%clk 0:01:46.5]} 35.
Ra6 {[%clk 0:00:22.8]} 35... Rxa3 {[%clk 0:01:46.4]} 36. Ra7 {[%clk 0:00:22.7]}
36... Bd5 {[%clk 0:01:34.1]} 37. Rd7+ {[%clk 0:00:21.9]} 37... Kc8 {[%clk
0:01:34.6]} 38. Rxd5 {[%clk 0:00:21]} 38... Ra1+ {[%clk 0:01:34.8]} 39. Kf2
{[%clk 0:00:21]} 39... a3 {[%clk 0:01:35.7]} 40. Be2 {[%clk 0:00:17.6]} 40... a2
{[%clk 0:01:33.2]} 41. Ra5 {[%clk 0:00:18.1]} 41... g5 {[%clk 0:01:33.7]} 42.
fxg5 {[%clk 0:00:15.1]} 42... h6 {[%clk 0:01:34.1]} 43. gxh6 {[%clk 0:00:15.3]}
43... f4 {[%clk 0:01:35]} 44. exf4 {[%clk 0:00:15]} 44... Rf1+ {[%clk
0:01:34.5]} 45. Bxf1 {[%clk 0:00:14.6]} 45... e3+ {[%clk 0:01:34.5]} 46. Kxe3
{[%clk 0:00:14.5]} 46... a1=Q {[%clk 0:01:35.4]} 47. Rxa1 {[%clk 0:00:09.5]} 1-0

[Event "*** Titled Tuesday Blitz"]
[Site "Chess.com"]
[Date "2021.02.02"]
[Round "8"]
[White "SergeyShtyka"]
[Black "EugeneRougon"]
[Result "0-1"]
[WhiteElo "2471"]
[BlackElo "2716"]
[TimeControl "180+1"]
[EndTime "11:28:52 PST"]
[Termination "EugeneRougon won by resignation"]

1. e4 {[%clk 0:03:00.9]} 1... d6 {[%clk 0:03:00.9]} 2. d4 {[%clk 0:02:59.8]}
2... g6 {[%clk 0:03:01.8]} 3. Nc3 {[%clk 0:02:59.6]} 3... Nf6 {[%clk 0:03:01.9]}
4. Nge2 {[%clk 0:02:59.8]} 4... Bg7 {[%clk 0:03:00.9]} 5. g3 {[%clk 0:02:59.5]}
5... O-O {[%clk 0:03:01.6]} 6. Bg2 {[%clk 0:02:59.5]} 6... e5 {[%clk 0:03:02.5]}
7. h3 {[%clk 0:02:59.2]} 7... exd4 {[%clk 0:03:03.4]} 8. Nxd4 {[%clk 0:02:59.6]}
8... Re8 {[%clk 0:03:04.3]} 9. O-O {[%clk 0:02:58.6]} 9... Nc6 {[%clk
0:03:04.9]} 10. Nb3 {[%clk 0:02:56.3]} 10... a5 {[%clk 0:03:01]} 11. a4 {[%clk
0:02:55.8]} 11... Be6 {[%clk 0:02:57.5]} 12. Bg5 {[%clk 0:02:51.7]} 12... h6
{[%clk 0:02:57.2]} 13. Bf4 {[%clk 0:02:49.4]} 13... Ne5 {[%clk 0:02:53.6]} 14.
Bxe5 {[%clk 0:02:42.2]} 14... dxe5 {[%clk 0:02:53.7]} 15. Nc5 {[%clk 0:02:38.5]}
15... Bc4 {[%clk 0:02:45.9]} 16. Qxd8 {[%clk 0:02:32.7]} 16... Rexd8 {[%clk
0:02:45.7]} 17. Rfd1 {[%clk 0:02:33]} 17... b6 {[%clk 0:02:44.3]} 18. Nd3 {[%clk
0:02:27.2]} 18... Nd7 {[%clk 0:02:36.4]} 19. b3 {[%clk 0:02:23.6]} 19... Be6
{[%clk 0:02:30.5]} 20. Nb5 {[%clk 0:02:22.9]} 20... c6 {[%clk 0:02:26.9]} 21.
Nc7 {[%clk 0:02:21.9]} 21... Rac8 {[%clk 0:02:27.4]} 22. Nxe6 {[%clk 0:02:21.5]}
22... fxe6 {[%clk 0:02:28.3]} 23. h4 {[%clk 0:02:11.8]} 23... Kf7 {[%clk
0:02:27.9]} 24. Bf1 {[%clk 0:02:03.1]} 24... Ke7 {[%clk 0:02:27.6]} 25. Be2
{[%clk 0:01:59.8]} 25... h5 {[%clk 0:02:15.5]} 26. Kg2 {[%clk 0:01:59.5]} 26...
Nf6 {[%clk 0:02:06.1]} 27. f3 {[%clk 0:01:54.4]} 27... Ne8 {[%clk 0:02:00.7]}
28. Nb2 {[%clk 0:01:48.9]} 28... Nd6 {[%clk 0:01:51.9]} 29. Nc4 {[%clk
0:01:47.8]} 29... Nxc4 {[%clk 0:01:51.9]} 30. Bxc4 {[%clk 0:01:47.9]} 30... Rd4
{[%clk 0:01:52.8]} 31. Rxd4 {[%clk 0:01:43]} 31... exd4 {[%clk 0:01:53]} 32. Rd1
{[%clk 0:01:42.8]} 32... e5 {[%clk 0:01:51.5]} 33. Kf2 {[%clk 0:01:36.8]} 33...
Rb8 {[%clk 0:01:49]} 34. Ke2 {[%clk 0:01:35.8]} 34... b5 {[%clk 0:01:49]} 35.
axb5 {[%clk 0:01:36.3]} 35... cxb5 {[%clk 0:01:49.9]} 36. Bd5 {[%clk 0:01:28.8]}
36... Rc8 {[%clk 0:01:49.6]} 37. Ra1 {[%clk 0:01:12.9]} 37... Rxc2+ {[%clk
0:01:34.4]} 38. Kd1 {[%clk 0:01:13]} 38... d3 {[%clk 0:01:34.5]} 39. Rxa5 {[%clk
0:01:11.1]} 39... Bh6 {[%clk 0:01:34.5]} 40. Ra7+ {[%clk 0:01:08.3]} 40... Kd8
{[%clk 0:01:28.8]} 41. Ra1 {[%clk 0:00:54.3]} 41... Rh2 {[%clk 0:01:21.2]} 42.
Ra8+ {[%clk 0:00:51.7]} 42... Kc7 {[%clk 0:01:21.1]} 43. f4 {[%clk 0:00:50.5]}
43... exf4 {[%clk 0:01:18.9]} 44. gxf4 {[%clk 0:00:29.9]} 44... Bxf4 {[%clk
0:01:16.9]} 0-1

[Event "*** Titled Tuesday Blitz"]
[Site "Chess.com"]
[Date "2021.02.02"]
[Round "8"]
[White "GMKrikor"]
[Black "JAAC2002"]
[Result "1-0"]
[WhiteElo "2791"]
[BlackElo "2499"]
[TimeControl "180+1"]
[EndTime "11:28:54 PST"]
[Termination "GMKrikor won by resignation"]

1. Nf3 {[%clk 0:03:00.9]} 1... Nf6 {[%clk 0:02:58.6]} 2. c4 {[%clk 0:03:00.4]}
2... c5 {[%clk 0:02:58.2]} 3. Nc3 {[%clk 0:03:00.5]} 3... e6 {[%clk 0:02:57.4]}
4. g3 {[%clk 0:03:00.2]} 4... b6 {[%clk 0:02:57.6]} 5. Bg2 {[%clk 0:03:00.5]}
5... Bb7 {[%clk 0:02:58.1]} 6. O-O {[%clk 0:03:01.2]} 6... Be7 {[%clk
0:02:58.3]} 7. Re1 {[%clk 0:03:01.7]} 7... d6 {[%clk 0:02:57.5]} 8. e4 {[%clk
0:03:01.8]} 8... Nbd7 {[%clk 0:02:53.6]} 9. d4 {[%clk 0:03:01.4]} 9... cxd4
{[%clk 0:02:53.3]} 10. Nxd4 {[%clk 0:03:02.3]} 10... Qc8 {[%clk 0:02:51.1]} 11.
Be3 {[%clk 0:02:41.5]} 11... a6 {[%clk 0:02:49]} 12. Rc1 {[%clk 0:02:41.5]}
12... O-O {[%clk 0:02:47.2]} 13. f4 {[%clk 0:02:40.8]} 13... Qc7 {[%clk
0:02:40.3]} 14. g4 {[%clk 0:02:31.1]} 14... Nc5 {[%clk 0:02:35.8]} 15. Bf2
{[%clk 0:02:30.6]} 15... g6 {[%clk 0:01:56.7]} 16. b4 {[%clk 0:02:30.2]} 16...
Ncd7 {[%clk 0:01:55.2]} 17. Nd5 {[%clk 0:01:44.2]} 17... exd5 {[%clk 0:01:49.8]}
18. cxd5 {[%clk 0:01:45.1]} 18... Qd8 {[%clk 0:01:45.3]} 19. Nc6 {[%clk
0:01:45]} 19... Bxc6 {[%clk 0:01:27.2]} 20. dxc6 {[%clk 0:01:45.9]} 20... Rc8
{[%clk 0:01:27.3]} 21. e5 {[%clk 0:01:13.7]} 21... dxe5 {[%clk 0:01:17.6]} 22.
fxe5 {[%clk 0:01:12.1]} 22... Nxe5 {[%clk 0:01:12.6]} 23. Rxe5 {[%clk
0:01:06.2]} 23... Qxd1+ {[%clk 0:01:06.9]} 24. Rxd1 {[%clk 0:01:06.5]} 24...
Bxb4 {[%clk 0:01:07]} 25. Bxb6 {[%clk 0:00:58]} 25... Rb8 {[%clk 0:00:56.9]} 26.
Ba7 {[%clk 0:00:49]} 26... Ra8 {[%clk 0:00:46.6]} 27. Bc5 {[%clk 0:00:42.5]}
27... Bxc5+ {[%clk 0:00:31.5]} 28. Rxc5 {[%clk 0:00:42]} 28... Rfc8 {[%clk
0:00:29.5]} 29. c7 {[%clk 0:00:40.7]} 29... Ra7 {[%clk 0:00:29.6]} 30. Rd8+
{[%clk 0:00:40.1]} 1-0